fUST/lending_fUST_20250206
["ID","MTS","AMOUNT","RATE_DAILY","PERIOD"]
[351877146,1738828241143,-500.0,0.00013835,2]
[351877147,1738828241152,-500.0,0.00013835,2]
[351877148,1738828241162,-500.0,0.00013835,2]
[351877149,1738828241172,-663.03,0.00013835,2]
[351877150,1738828241182,-500.0,0.00013835,2]
[351877151,1738828241192,-1964.46,0.00013835,2]
[351877152,1738828241202,-500.0,0.00013835,2]
[351877153,1738828241211,-2060.26,0.00013835,2]
[351877154,1738828241221,-500.0,0.00013835,2]
[351877155,1738828241231,-1898.44,0.00013835,2]
[351877156,1738828241241,-227.66882497,0.00013835,2]
[351877157,1738828241250,-1811.28,0.00013835,2]
[351877158,1738828241260,-993.62,0.00013835,2]
[351877159,1738828241270,-500.0,0.00013835,2]
[351877160,1738828241279,-1182.6,0.00013835,2]
[351877161,1738828241289,-500.0,0.00013835,2]
[351877162,1738828241299,-537.96,0.00013835,2]
[351877163,1738828241309,-500.0,0.00013835,2]
[351877164,1738828241318,-500.0,0.00013835,2]
[351877165,1738828241328,-500.0,0.00013835,2]
[351877166,1738828241338,-500.0,0.00013835,2]
[351877167,1738828241347,-500.0,0.00013835,2]
[351877168,1738828241357,-500.0,0.00013835,2]
[351877169,1738828241366,-500.0,0.00013835,2]
[351877170,1738828241375,-1461.85,0.00013835,2]
[351877171,1738828241385,-840.52,0.00013835,2]
[351877172,1738828241395,-500.0,0.00013835,2]
[351877173,1738828241406,-500.0,0.00013835,2]
[351877174,1738828241415,-500.0,0.00013835,2]
[351877175,1738828241426,-500.0,0.00013835,2]
[351877176,1738828241436,-624.06,0.00013835,2]
[351877177,1738828241445,-2053.64,0.00013835,2]
[351877178,1738828241455,-500.0,0.00013835,2]
[351877179,1738828241465,-500.0,0.00013835,2]
[351877180,1738828241475,-500.0,0.00013835,2]
[351877181,1738828241484,-820.82,0.00013835,2]
[351877182,1738828241494,-500.0,0.00013835,2]
[351877183,1738828241504,-500.0,0.00013835,2]
[351877184,1738828241514,-9171.56,0.00013835,2]
[351877185,1738828241524,-564.26,0.00013835,2]
[351877186,1738828241534,-2459.67,0.00013835,2]
[351877187,1738828241543,-500.0,0.00013835,2]
[351877188,1738828241553,-500.0,0.00013835,2]
[351877189,1738828241563,-500.0,0.00013835,2]
[351877190,1738828241572,-1420.31,0.00013835,2]
[351877191,1738828241583,-500.0,0.00013835,2]
[351877192,1738828241592,-500.0,0.00013835,2]
[351877193,1738828241602,-2894.67,0.00013835,2]
[351877194,1738828241612,-2875.66,0.00013835,2]
[351877195,1738828241622,-500.0,0.00013835,2]
[351877196,1738828241631,-331.49268975,0.00013835,2]
[351877197,1738828241640,-3750.01,0.00013835,2]
[351877198,1738828241650,-1314.52,0.00013835,2]
[351877199,1738828241660,-500.0,0.00013835,2]
[351877200,1738828241669,-500.0,0.00013835,2]
[351877201,1738828241679,-638.86,0.00013835,2]
[351877202,1738828241688,-500.0,0.00013835,2]
[351877203,1738828241698,-683.53,0.00013835,2]
[351877204,1738828241708,-1346.33,0.00013835,2]
[351877205,1738828241717,-566.68,0.00013835,2]
[351877206,1738828241727,-500.0,0.00013835,2]
[351877207,1738828241736,-1596.8,0.00013835,2]
[351877208,1738828241747,-1479.92,0.00013835,2]
[351877209,1738828241757,-500.0,0.00013835,2]
[351877210,1738828241767,-500.0,0.00013835,2]
[351877211,1738828241777,-523.0,0.00013835,2]
[351877212,1738828241788,-861.72,0.00013835,2]
[351877213,1738828241798,-500.0,0.00013835,2]
[351877214,1738828241809,-505.08,0.00013835,2]
[351877215,1738828241819,-693.47,0.00013835,2]
[351877216,1738828241829,-500.0,0.00013835,2]
[351877217,1738828241839,-1324.95,0.00013835,2]
[351877218,1738828241848,-500.0,0.00013835,2]
[351877219,1738828241858,-500.0,0.00013835,2]
[351877220,1738828241868,-3342.74,0.00013835,2]
[351877221,1738828241877,-520.37019766,0.00013835,2]
[351877222,1738828241887,-500.0,0.00013835,2]
[351877223,1738828241897,-1346.95,0.00013835,2]
[351877224,1738828241907,-6659.87,0.00013835,2]
[351877225,1738828241917,-536.53,0.00013835,2]
[351877226,1738828241927,-500.0,0.00013835,2]
[351877227,1738828241937,-14180.11,0.00013835,2]
[351877228,1738828241947,-500.0,0.00013835,2]
[351877229,1738828241956,-500.0,0.00013873,2]
[351877230,1738828241966,-500.0,0.00013971,2]
[351877231,1738828241975,-506.92665181,0.00013971,2]
[351877232,1738828241986,-500.0,0.00013972,2]
[351877233,1738828241996,-500.0,0.00013972,2]
[351877234,1738828242007,-500.0,0.00013972,2]
[351877235,1738828242016,-500.0,0.00013972,2]
[351877236,1738828242027,-500.0,0.00013972,2]
[351877237,1738828242036,-500.0,0.00013972,2]
[351877238,1738828242047,-500.0,0.00013972,2]
[351877239,1738828242060,-400.49044935,0.00013972,2]
[351877240,1738828242071,-500.0,0.00013972,2]
[351877241,1738828242081,-500.0,0.00013972,2]
[351877242,1738828242092,-500.0,0.00013972,2]
[351877243,1738828242102,-500.0,0.00013972,2]
[351877244,1738828242112,-591.14439946,0.00013972,2]
[351877245,1738828242123,-500.0,0.00013972,2]
[351877246,1738828242133,-500.0,0.00013972,2]
[351877247,1738828242143,-500.0,0.00013972,2]
[351877248,1738828242155,-500.0,0.00013972,2]
[351877249,1738828242164,-500.0,0.00013972,2]
[351877250,1738828242174,-500.0,0.00013972,2]
[351877251,1738828242184,-500.0,0.00013972,2]
[351877252,1738828242194,-500.0,0.00013972,2]
[351877253,1738828242204,-643.66,0.00013972,2]
[351877254,1738828242213,-500.0,0.00013972,2]
[351877255,1738828242222,-500.0,0.00013972,2]
[351877256,1738828242231,-500.0,0.00013972,2]
[351877257,1738828242241,-500.0,0.00013972,2]
[351877258,1738828242251,-500.0,0.00013972,2]
[351877259,1738828242260,-500.0,0.00013972,2]
[351877260,1738828242270,-572.83,0.00013972,2]
[351877261,1738828242279,-500.0,0.00013972,2]
[351877262,1738828242288,-600.65,0.00013972,2]
[351877263,1738828242298,-500.0,0.00013972,2]
[351877264,1738828242307,-500.0,0.00013972,2]
[351877265,1738828242317,-500.0,0.00013972,2]
[351877266,1738828242326,-500.0,0.00013972,2]
[351877267,1738828242336,-500.0,0.00013972,2]
[351877268,1738828242346,-500.0,0.00013972,2]
[351877269,1738828242355,-500.0,0.00013972,2]
[351877270,1738828242365,-500.0,0.00013972,2]
[351877271,1738828242376,-500.0,0.00013972,2]
[351877272,1738828242393,-564.76,0.00013972,2]
[351877273,1738828242403,-500.0,0.00013972,2]
[351877274,1738828242413,-500.0,0.00013972,2]
[351877275,1738828242423,-500.0,0.00013972,2]
[351877276,1738828242432,-1119.47,0.00013972,2]
[351877277,1738828242441,-500.0,0.00013972,2]
[351877278,1738828242632,-1283.2,0.00013972,2]
[351877279,1738828242644,-500.0,0.00013972,2]
[351877280,1738828242654,-500.0,0.00013972,2]
[351877281,1738828242665,-1296.73,0.00013972,2]
[351877282,1738828242674,-500.0,0.00013972,2]
[351877283,1738828242685,-500.0,0.00013972,2]
[351877284,1738828242695,-500.0,0.00013972,2]
[351877285,1738828242705,-500.0,0.00013972,2]
[351877286,1738828242716,-500.0,0.00013972,2]
[351877287,1738828242727,-500.0,0.00013972,2]
[351877288,1738828242736,-500.0,0.00013972,2]
[351877289,1738828242746,-500.0,0.00013972,2]
[351877290,1738828242757,-500.0,0.00013972,2]
[351877291,1738828242766,-907.06,0.00013972,2]
[351877292,1738828242777,-500.0,0.00013972,2]
[351877293,1738828242787,-500.0,0.00013972,2]
[351877294,1738828242796,-500.0,0.00013972,2]
[351877295,1738828242806,-687.39,0.00013972,2]
[351877296,1738828242816,-500.0,0.00013972,2]
[351877297,1738828242826,-1613.82,0.00013972,2]
[351877298,1738828242835,-515.57,0.00013972,2]
[351877299,1738828242844,-500.0,0.00013972,2]
[351877300,1738828242854,-500.0,0.00013972,2]
[351877301,1738828242863,-500.0,0.00013972,2]
[351877302,1738828242873,-1316.04,0.00013972,2]
[351877303,1738828242883,-500.0,0.00013972,2]
[351877304,1738828242892,-500.0,0.00013972,2]
[351877305,1738828242903,-572.77,0.00013972,2]
[351877306,1738828242913,-979.04,0.00013972,2]
[351877307,1738828242922,-500.0,0.00013972,2]
[351877308,1738828242931,-500.0,0.00013972,2]
[351877309,1738828242941,-500.0,0.00013972,2]
[351877310,1738828242951,-500.0,0.00013972,2]
[351877311,1738828242961,-500.0,0.00013972,2]
[351877312,1738828242970,-500.0,0.00013972,2]
[351877313,1738828242980,-500.0,0.00013972,2]
[351877314,1738828242990,-500.0,0.00013972,2]
[351877315,1738828243000,-500.0,0.00013972,2]
[351877316,1738828243009,-506.86,0.00013972,2]
[351877317,1738828243019,-1100.44,0.00013972,2]
[351877318,1738828243029,-500.0,0.00013972,2]
[351877319,1738828243039,-500.0,0.00013972,2]
[351877320,1738828243053,-500.0,0.00013972,2]
[351877321,1738828243063,-500.0,0.00013972,2]
[351877322,1738828243072,-500.0,0.00013972,2]
[351877323,1738828243083,-500.0,0.00013972,2]
[351877324,1738828243093,-500.0,0.00013972,2]
[351877325,1738828243103,-3386.05,0.00013972,2]
[351877326,1738828243113,-738.06,0.00013972,2]
[351877327,1738828243126,-500.0,0.00013972,2]
[351877328,1738828243137,-500.0,0.00013972,2]
[351877330,1738828243150,-500.0,0.00013972,2]
[351877331,1738828243159,-500.0,0.00013972,2]
[351877333,1738828243170,-500.0,0.00013972,2]
[351877335,1738828243179,-500.0,0.00013972,2]
[351877337,1738828243189,-500.0,0.00013972,2]
[351877339,1738828243199,-500.0,0.00013972,2]
[351877341,1738828243208,-1181.59,0.00013972,2]
[351877343,1738828243217,-500.0,0.00013972,2]
[351877345,1738828243227,-500.0,0.00013972,2]
[351877347,1738828243237,-500.0,0.00013972,2]
[351877349,1738828243246,-500.0,0.00013972,2]
[351877350,1738828243255,-1057.51,0.00013972,2]
[351877351,1738828243265,-4576.6,0.00013972,2]
[351877352,1738828243274,-500.0,0.00013972,2]
[351877353,1738828243284,-1474.61,0.00013972,2]
[351877354,1738828243294,-3911.21,0.00013972,2]
[351877355,1738828243303,-500.0,0.00013972,2]
[351877356,1738828243312,-40340.27,0.00013972,2]
[351877357,1738828243322,-17302.07,0.00013972,2]
[351877358,1738828243331,-500.0,0.00013972,2]
[351877359,1738828243342,-500.0,0.00013972,2]
[351877360,1738828243352,-500.0,0.00013972,2]
[351877361,1738828243361,-663.03,0.00013972,2]
[351877362,1738828243371,-500.0,0.00013972,2]
[351877363,1738828243386,-1964.46,0.00013972,2]
[351877364,1738828243402,-500.0,0.00013972,2]
[351877365,1738828243411,-2060.26,0.00013972,2]
[351877366,1738828243421,-500.0,0.00013972,2]
[351877367,1738828243432,-1898.44,0.00013972,2]
[351877369,1738828243442,-1811.28,0.00013972,2]
[351877371,1738828243451,-993.62,0.00013972,2]
[351877373,1738828243460,-500.0,0.00013972,2]
[351877374,1738828243470,-1182.6,0.00013972,2]
[351877376,1738828243479,-500.0,0.00013972,2]
[351877378,1738828243490,-537.96,0.00013972,2]
[351877380,1738828243499,-500.0,0.00013972,2]
[351877381,1738828243508,-464.13814723,0.00013972,2]
[351877383,1738828243518,-500.0,0.00013972,2]
[351877384,1738828243527,-500.0,0.00013972,2]
[351877385,1738828243537,-500.0,0.00013972,2]
[351877386,1738828243546,-500.0,0.00013972,2]
[351877387,1738828243555,-500.0,0.00013972,2]
[351877389,1738828243565,-1461.85,0.00013972,2]
[351877390,1738828243574,-840.52,0.00013972,2]
[351877391,1738828243584,-500.0,0.00013972,2]
[351877392,1738828243594,-500.0,0.00013972,2]
[351877393,1738828243603,-500.0,0.00013972,2]
[351877394,1738828243613,-500.0,0.00013972,2]
[351877395,1738828243622,-624.06,0.00013972,2]
[351877396,1738828243632,-2053.64,0.00013972,2]
[351877397,1738828243641,-500.0,0.00013972,2]
[351877398,1738828243652,-500.0,0.00013972,2]
[351877399,1738828243661,-820.82,0.00013972,2]
[351877400,1738828243670,-500.0,0.00013972,2]
[351877402,1738828243680,-500.0,0.00013972,2]
[351877404,1738828243689,-9171.56,0.00013972,2]
[351877405,1738828243699,-564.26,0.00013972,2]
[351877407,1738828243709,-2459.67,0.00013972,2]
[351877409,1738828243718,-500.0,0.00013972,2]
[351877411,1738828243728,-500.0,0.00013972,2]
[351877413,1738828243737,-500.0,0.00013972,2]
[351877415,1738828243747,-1420.31,0.00013972,2]
[351877418,1738828243759,-500.0,0.00013972,2]
[351877420,1738828243768,-500.0,0.00013972,2]
[351877422,1738828243778,-2894.67,0.00013972,2]
[351877424,1738828243787,-2875.66,0.00013972,2]
[351877426,1738828243797,-500.0,0.00013972,2]
[351877428,1738828243806,-3750.01,0.00013972,2]
[351877430,1738828243815,-1314.52,0.00013972,2]
[351877431,1738828243824,-638.86,0.00013972,2]
[351877433,1738828243834,-500.0,0.00013972,2]
[351877435,1738828243843,-683.53,0.00013972,2]
[351877437,1738828243853,-1346.33,0.00013972,2]
[351877439,1738828243862,-566.68,0.00013972,2]
[351877441,1738828243872,-500.0,0.00013972,2]
[351877443,1738828243881,-1596.8,0.00013972,2]
[351877445,1738828243890,-1479.92,0.00013972,2]
[351877447,1738828243901,-500.0,0.00013972,2]
[351877449,1738828243910,-500.0,0.00013972,2]
[351877451,1738828243919,-523.0,0.00013972,2]
[351877453,1738828243929,-861.72,0.00013972,2]
[351877455,1738828243938,-500.0,0.00013972,2]
[351877457,1738828243947,-505.08,0.00013972,2]
[351877459,1738828243957,-693.47,0.00013972,2]
[351877461,1738828243966,-500.0,0.00013972,2]
[351877463,1738828243975,-1324.95,0.00013972,2]
[351877465,1738828243985,-500.0,0.00013972,2]
[351877467,1738828243994,-500.0,0.00013972,2]
[351877470,1738828244004,-3342.74,0.00013972,2]
[351877474,1738828244014,-500.0,0.00013972,2]
[351877475,1738828244023,-1346.95,0.00013972,2]
[351877477,1738828244033,-6659.87,0.00013972,2]
[351877479,1738828244043,-536.53,0.00013972,2]
[351877482,1738828244056,-500.0,0.00013972,2]
[351877484,1738828244067,-14180.11,0.00013972,2]
[351877486,1738828244076,-500.0,0.00013972,2]
[351877488,1738828244086,-400.0,0.00013973,2]
[351877490,1738828244097,-812.0,0.000141,5]
[351877492,1738828244106,-500.0,0.00014109,2]
[351877494,1738828244116,-500.0,0.00014109,2]
[351877496,1738828244127,-155.05068736,0.00014109,2]
[351877498,1738828244136,-500.0,0.00014109,2]
[351877500,1738828244146,-500.0,0.00014109,2]
[351877502,1738828244156,-500.0,0.00014109,2]
[351877504,1738828244166,-500.0,0.00014109,2]
[351877506,1738828244175,-500.0,0.00014109,2]
[351877508,1738828244185,-500.0,0.00014109,2]
[351877510,1738828244194,-500.0,0.00014109,2]
[351877512,1738828244203,-500.0,0.00014109,2]
[351877514,1738828244212,-646.23075932,0.00014109,2]
[351877516,1738828244221,-506.19836677,0.00014109,2]
[351877518,1738828244231,-500.0,0.00014109,2]
[351877520,1738828244241,-500.0,0.00014109,2]
[351877522,1738828244250,-500.0,0.00014109,2]
[351877524,1738828244259,-500.0,0.00014109,2]
[351877526,1738828244269,-500.0,0.00014109,2]
[351877528,1738828244278,-643.66,0.00014109,2]
[351877530,1738828244288,-333.7506941,0.00014109,2]
[351877531,1738828244298,-500.0,0.00014109,2]
[351877533,1738828244308,-500.0,0.00014109,2]
[351877535,1738828244317,-500.0,0.00014109,2]
[351877537,1738828244326,-500.0,0.00014109,2]
[351877539,1738828244335,-572.83,0.00014109,2]
[351877541,1738828244345,-500.0,0.00014109,2]
[351877543,1738828244354,-600.65,0.00014109,2]
[351877545,1738828244363,-500.0,0.00014109,2]
[351877548,1738828244373,-226.68405958,0.00014109,2]
[351877549,1738828244382,-500.0,0.00014109,2]
[351877552,1738828244392,-500.0,0.00014109,2]
[351877554,1738828244402,-500.0,0.00014109,2]
[351877556,1738828244411,-500.0,0.00014109,2]
[351877558,1738828244420,-548.19464713,0.00014109,2]
[351877560,1738828244430,-500.0,0.00014109,2]
[351877562,1738828244439,-500.0,0.00014109,2]
[351877564,1738828244449,-564.76,0.00014109,2]
[351877566,1738828244458,-500.0,0.00014109,2]
[351877568,1738828244468,-500.0,0.00014109,2]
[351877570,1738828244478,-500.0,0.00014109,2]
[351877572,1738828244487,-1119.47,0.00014109,2]
[351877574,1738828244496,-1283.2,0.00014109,2]
[351877576,1738828244506,-500.0,0.00014109,2]
[351877578,1738828244515,-500.0,0.00014109,2]
[351877580,1738828244525,-1296.73,0.00014109,2]
[351877582,1738828244535,-500.0,0.00014109,2]
[351877584,1738828244545,-500.0,0.00014109,2]
[351877586,1738828244555,-500.0,0.00014109,2]
[351877588,1738828244564,-500.0,0.00014109,2]
[351877590,1738828244574,-500.0,0.00014109,2]
[351877592,1738828244584,-500.0,0.00014109,2]
[351877594,1738828244593,-500.0,0.00014109,2]
[351877596,1738828244603,-500.0,0.00014109,2]
[351877598,1738828244613,-907.06,0.00014109,2]
[351877600,1738828244622,-500.0,0.00014109,2]
[351877602,1738828244632,-358.34153822,0.00014109,2]
[351877604,1738828244642,-500.0,0.00014109,2]
[351877606,1738828244651,-687.39,0.00014109,2]
[351877608,1738828244661,-500.0,0.00014109,2]
[351877610,1738828244670,-1613.82,0.00014109,2]
[351877612,1738828244679,-515.57,0.00014109,2]
[351877614,1738828244688,-500.0,0.00014109,2]
[351877616,1738828244698,-500.0,0.00014109,2]
[351877618,1738828244707,-500.0,0.00014109,2]
[351877620,1738828244717,-1316.04,0.00014109,2]
[351877622,1738828244726,-500.0,0.00014109,2]
[351877624,1738828244736,-500.0,0.00014109,2]
[351877626,1738828244745,-572.77,0.00014109,2]
[351877628,1738828244755,-979.04,0.00014109,2]
[351877630,1738828244764,-500.0,0.00014109,2]
[351877632,1738828244774,-500.0,0.00014109,2]
[351877634,1738828244783,-500.0,0.00014109,2]
[351877636,1738828244792,-500.0,0.00014109,2]
[351877638,1738828244802,-229.5921136,0.00014109,2]
[351877640,1738828244811,-500.0,0.00014109,2]
[351877642,1738828244820,-500.0,0.00014109,2]
[351877644,1738828244829,-500.0,0.00014109,2]
[351877646,1738828244839,-500.0,0.00014109,2]
[351877648,1738828244848,-506.86,0.00014109,2]
[351877650,1738828244858,-1100.44,0.00014109,2]
[351877652,1738828244867,-500.0,0.00014109,2]
[351877654,1738828244876,-500.0,0.00014109,2]
[351877656,1738828244886,-500.0,0.00014109,2]
[351877658,1738828244895,-500.0,0.00014109,2]
[351877660,1738828244904,-500.0,0.00014109,2]
[351877662,1738828244913,-500.0,0.00014109,2]
[351877664,1738828244923,-500.0,0.00014109,2]
[351877666,1738828244932,-3386.05,0.00014109,2]
[351877668,1738828244942,-738.06,0.00014109,2]
[351877670,1738828244951,-500.0,0.00014109,2]
[351877672,1738828244960,-191.19982288,0.00014109,2]
[351877674,1738828244969,-500.0,0.00014109,2]
[351877676,1738828244979,-500.0,0.00014109,2]
[351877678,1738828244988,-500.0,0.00014109,2]
[351877680,1738828244998,-500.0,0.00014109,2]
[351877682,1738828245007,-609.50458954,0.00014109,2]
[351877684,1738828245017,-500.0,0.00014109,2]
[351877686,1738828245026,-1181.59,0.00014109,2]
[351877688,1738828245035,-500.0,0.00014109,2]
[351877690,1738828245047,-500.0,0.00014109,2]
[351877692,1738828245057,-500.0,0.00014109,2]
[351877694,1738828245066,-500.0,0.00014109,2]
[351877696,1738828245075,-1057.51,0.00014109,2]
[351877698,1738828245084,-4576.6,0.00014109,2]
[351877700,1738828245094,-500.0,0.00014109,2]
[351877702,1738828245103,-1474.61,0.00014109,2]
[351877704,1738828245112,-3911.21,0.00014109,2]
[351877706,1738828245122,-500.0,0.00014109,2]
[351877708,1738828245132,-40340.27,0.00014109,2]
[351877710,1738828245141,-17302.07,0.00014109,2]
[351877712,1738828245151,-500.0,0.00014109,2]
[351877714,1738828245160,-500.0,0.00014109,2]
[351877716,1738828245170,-500.0,0.00014109,2]
[351877718,1738828245179,-663.03,0.00014109,2]
[351877720,1738828245189,-500.0,0.00014109,2]
[351877722,1738828245198,-1964.46,0.00014109,2]
[351877724,1738828245207,-500.0,0.00014109,2]
[351877725,1738828245216,-2060.26,0.00014109,2]
[351877726,1738828245226,-500.0,0.00014109,2]
[351877727,1738828245235,-1898.44,0.00014109,2]
[351877728,1738828245244,-1811.28,0.00014109,2]
[351877729,1738828245252,-993.62,0.00014109,2]
[351877730,1738828245261,-500.0,0.00014109,2]
[351877731,1738828245271,-1182.6,0.00014109,2]
[351877732,1738828245279,-500.0,0.00014109,2]
[351877733,1738828245288,-537.96,0.00014109,2]
[351877734,1738828245298,-500.0,0.00014109,2]
[351877735,1738828245307,-500.0,0.00014109,2]
[351877736,1738828245316,-500.0,0.00014109,2]
[351877737,1738828245325,-500.0,0.00014109,2]
[351877738,1738828245334,-500.0,0.00014109,2]
[351877739,1738828245343,-1461.85,0.00014109,2]
[351877740,1738828245352,-840.52,0.00014109,2]
[351877741,1738828245361,-500.0,0.00014109,2]
[351877743,1738828245371,-500.0,0.00014109,2]
[351877745,1738828245380,-500.0,0.00014109,2]
[351877747,1738828245389,-500.0,0.00014109,2]
[351877749,1738828245399,-624.06,0.00014109,2]
[351877751,1738828245408,-2053.64,0.00014109,2]
[351877753,1738828245417,-500.0,0.00014109,2]
[351877754,1738828245426,-500.0,0.00014109,2]
[351877757,1738828245436,-820.82,0.00014109,2]
[351877759,1738828245445,-500.0,0.00014109,2]
[351877761,1738828245456,-500.0,0.00014109,2]
[351877763,1738828245467,-9171.56,0.00014109,2]
[351877765,1738828245480,-564.26,0.00014109,2]
[351877767,1738828245489,-2459.67,0.00014109,2]
[351877769,1738828245498,-500.0,0.00014109,2]
[351877771,1738828245508,-500.0,0.00014109,2]
[351877772,1738828245517,-500.0,0.00014109,2]
[351877775,1738828245527,-1420.31,0.00014109,2]
[351877776,1738828245536,-500.0,0.00014109,2]
[351877779,1738828245546,-583.77995965,0.00014109,2]
[351877781,1738828245556,-2894.67,0.00014109,2]
[351877782,1738828245566,-2875.66,0.00014109,2]
[351877784,1738828245575,-500.0,0.00014109,2]
[351877786,1738828245584,-3750.01,0.00014109,2]
[351877788,1738828245594,-1314.52,0.00014109,2]
[351877790,1738828245603,-638.86,0.00014109,2]
[351877792,1738828245612,-500.0,0.00014109,2]
[351877794,1738828245622,-683.53,0.00014109,2]
[351877796,1738828245631,-1346.33,0.00014109,2]
[351877798,1738828245641,-566.68,0.00014109,2]
[351877800,1738828245651,-500.0,0.00014109,2]
[351877802,1738828245661,-1596.8,0.00014109,2]
[351877805,1738828245671,-1479.92,0.00014109,2]
[351877807,1738828245680,-500.0,0.00014109,2]
[351877808,1738828245690,-523.0,0.00014109,2]
[351877810,1738828245700,-861.72,0.00014109,2]
[351877812,1738828245709,-500.0,0.00014109,2]
[351877815,1738828245719,-505.08,0.00014109,2]
[351877817,1738828245729,-500.0,0.00014109,2]
[351877818,1738828245738,-693.47,0.00014109,2]
[351877821,1738828245748,-1324.95,0.00014109,2]
[351877823,1738828245758,-500.0,0.00014109,2]
[351877825,1738828245768,-500.0,0.00014109,2]
[351877827,1738828245777,-3342.74,0.00014109,2]
[351877829,1738828245787,-500.0,0.00014109,2]
[351877830,1738828245796,-1346.95,0.00014109,2]
[351877832,1738828245806,-6659.87,0.00014109,2]
[351877835,1738828245815,-536.53,0.00014109,2]
[351877836,1738828245824,-500.0,0.00014109,2]
[351877838,1738828245834,-7111.44557787,0.00014109,2]
[351877846,1738828245896,-7068.66442213,0.00014109,2]
[351877848,1738828245905,-500.0,0.00014109,2]
[351877850,1738828245915,-2862.97338027,0.00014113,2]
[351877852,1738828245924,-3139.9,0.00014113,2]
[351877859,1738828245982,-1758.15974404,0.00014113,2]
[351877864,1738828246009,-852.60449556,0.00014113,2]
[351877866,1738828246020,-318.63610174,0.00014113,2]
[351877879,1738828246112,-500.0,0.00013698,2]
[351877882,1738828246122,-218.19091382,0.00014146,2]
[351877884,1738828246132,-482.99467219,0.00014213,2]
[351877886,1738828246142,-500.0,0.00014221,2]
[351877903,1738828246292,-190.785,0.00014221,2]
[351877905,1738828246303,-500.0,0.00014246,2]
[351877907,1738828246312,-500.0,0.00014246,2]
[351877909,1738828246322,-500.0,0.00014246,2]
[351877911,1738828246332,-500.0,0.00014246,2]
[351877913,1738828246341,-500.0,0.00014246,2]
[351877915,1738828246350,-250.6719059,0.00014246,2]
[351877917,1738828246360,-500.0,0.00014246,2]
[351877919,1738828246369,-500.0,0.00014246,2]
[351877921,1738828246380,-384.32594793,0.00014246,2]
[351877923,1738828246389,-500.0,0.00014246,2]
[351877925,1738828246403,-643.66,0.00014246,2]
[351877927,1738828246413,-500.0,0.00014246,2]
[351877929,1738828246422,-500.0,0.00014246,2]
[351877931,1738828246433,-572.83,0.00014246,2]
[351877933,1738828246443,-500.0,0.00014246,2]
[351877935,1738828246453,-600.65,0.00014246,2]
[351877937,1738828246463,-500.0,0.00014246,2]
[351877939,1738828246473,-500.0,0.00014246,2]
[351877941,1738828246483,-500.0,0.00014246,2]
[351877943,1738828246493,-500.0,0.00014246,2]
[351877945,1738828246502,-500.0,0.00014246,2]
[351877947,1738828246512,-564.76,0.00014246,2]
[351877949,1738828246522,-271.54870751,0.00014246,2]
[351877951,1738828246535,-228.45129249,0.00014246,2]